bitfinex-derivatives/quotes_ETHF0:USTF0_20260121
["timestamp","ask_amount","ask_price","bid_price","bid_amount"]
[1768998255453,0.00330411,2917.3,2915.9,0.15158352]
[1768998255751,0.17487411,2917.3,2915.9,0.15158352]
[1768998256645,0.00514755,2916.9,2915.9,0.15158352]
[1768998258040,0.1716,2916.8,2915.9,0.15158352]
[1768998258746,0.00514755,2916.9,2915.9,0.15158352]
[1768998258953,0.00330411,2917.3,2915.9,0.15158352]
[1768998259858,0.00330411,2917.3,2915.9,0.32323352]
[1768998260055,0.17151,2918.4,2916.4,0.15158352]
[1768998260352,0.17151,2918.4,2916.8,0.15158352]
[1768998260744,0.17146,2919.1,2916.9,0.15158352]
[1768998261052,0.17507595,2919.1,2917.3,0.15158352]
[1768998261251,0.17507595,2919.1,2917.7,0.00514755]
[1768998261457,0.17507595,2919.1,2917.8,0.15158352]
[1768998261950,0.17507595,2919.1,2917.7,0.00514755]
[1768998261951,0.17147,2918.9,2917.7,0.00514755]
[1768998263350,0.00361595,2919.1,2917.7,0.00514755]
[1768998264159,0.17151,2918.4,2917.7,0.00514755]
[1768998264455,0.17151,2918.3,2917.7,0.00251758]
[1768998265253,0.17151,2918.3,2917.3,0.0041683]
[1768998265254,7.20451412,2918.3,2917.3,0.0041683]
[1768998265459,0.17154,2917.7,2916.5,0.15158352]
[1768998266053,0.17157,2917.2,2915.3,0.15158352]
[1768998266446,0.17153,2917.9,2916.1,0.15158352]
[1768998266651,0.98227859,2917.8,2916.1,0.15158352]
[1768998266849,0.17153,2917.9,2916.1,0.15158352]
[1768998267052,0.1715,2918.5,2916.5,0.15158352]
[1768998267256,1.18019489,2919.1,2916.5,0.15158352]
[1768998267454,0.17152,2918.1,2916.5,0.15158352]
[1768998267654,0.17152,2918.1,2917.5,0.00514755]
[1768998267955,0.17152,2918.1,2917.5,0.00929934]
[1768998268258,0.00361595,2919.1,2917.5,0.16088286]
[1768998268454,0.17149,2918.7,2917.5,0.16088286]
[1768998272255,0.17149,2918.6,2917.5,0.16088286]
[1768998272456,1.17657894,2919.0,2917.5,0.16088286]
[1768998272652,0.17151,2918.3,2917.5,0.16088286]
[1768998272857,0.17147,2918.9,2917.5,0.16088286]
[1768998273266,0.98617131,2918.8,2917.5,0.16088286]
[1768998273561,0.17148,2918.8,2917.5,0.16088286]
[1768998274760,0.00361595,2919.1,2917.5,0.16088286]
[1768998275268,0.17151,2918.4,2917.5,0.16088286]
[1768998275768,0.00514755,2918.2,2917.5,0.16088286]
[1768998275954,0.649,2918.1,2915.9,0.15158352]
[1768998276259,1.18480266,2917.9,2915.9,0.15158352]
[1768998276451,0.1716,2916.8,2915.9,0.15158352]
[1768998277057,0.17584964,2916.8,2915.9,0.15552987]
[1768998277262,0.00424964,2916.8,2916.2,0.15158352]
[1768998277464,0.17158,2917.2,2916.2,0.15158352]
[1768998278464,0.17563133,2917.2,2916.2,0.15158352]
[1768998279159,0.00405133,2917.2,2916.1,0.00514755]
[1768998279364,0.98642704,2917.1,2916.1,0.00514755]
[1768998279562,0.98640672,2917.0,2916.1,0.00514755]
[1768998279759,0.00405133,2917.2,2916.1,0.00514755]
[1768998279963,0.98641686,2917.1,2916.1,0.00514755]
[1768998280258,0.00405133,2917.2,2916.1,0.00514755]
[1768998280464,0.17159,2916.9,2916.1,0.00514755]
[1768998281465,0.00514755,2916.8,2916.1,0.00514755]
[1768998281767,0.00514755,2916.8,2916.1,7.55e-06]
[1768998281967,0.17163,2916.3,2915.9,3.9e-06]
[1768998282260,0.00514755,2916.8,2915.9,3.9e-06]
[1768998282261,0.17163,2916.2,2915.9,3.9e-06]
[1768998283058,0.00514755,2916.8,2915.9,3.9e-06]
[1768998283255,0.17162,2916.4,2915.9,0.15158742]
[1768998283867,0.17163,2916.3,2915.9,3.9e-06]
[1768998286164,0.17163,2916.2,2915.9,3.9e-06]
[1768998290375,0.17674755,2916.8,2915.9,3.9e-06]
[1768998293170,0.17161,2916.6,2915.9,3.9e-06]
[1768998293668,0.00514755,2916.8,2915.9,3.9e-06]
[1768998300181,0.1716,2916.7,2915.9,3.9e-06]
[1768998300676,0.00514755,2916.8,2915.9,3.9e-06]
[1768998301582,0.17674755,2916.8,2915.9,3.9e-06]
[1768998301987,0.00514755,2916.8,2915.9,3.9e-06]
[1768998302775,0.17161,2916.6,2915.9,3.9e-06]
[1768998304073,0.17162,2916.4,2915.9,3.9e-06]
[1768998304282,0.00514755,2916.8,2915.9,3.9e-06]
[1768998304586,0.17166,2915.8,2914.8,0.15864709]
[1768998304777,0.17166,2915.7,2914.8,0.15864709]
[1768998304980,0.17167,2915.6,2914.8,0.15864709]
[1768998305585,0.17167,2915.6,2914.8,0.16285389]
[1768998307284,0.17167,2915.5,2914.8,0.16285389]
[1768998307488,4.63080266,2916.2,2914.8,6.8e-06]
[1768998307690,2.59045002,2916.1,2914.8,6.8e-06]
[1768998307986,0.98745024,2916.0,2914.8,6.8e-06]
[1768998308185,0.17169,2915.2,2914.8,6.8e-06]
[1768998309582,0.00514755,2915.3,2914.8,0.15865389]
[1768998309789,0.17165,2915.9,2914.8,0.15865389]
[1768998310381,0.17166,2915.8,2914.8,0.15865389]
[1768998310783,0.17166,2915.8,2915.0,0.00514755]
[1768998311189,0.00514755,2915.7,2915.0,0.00514755]
[1768998311990,0.00514755,2915.7,2915.0,0.16379464]
[1768998312187,0.17162,2916.4,2915.0,0.16379464]
[1768998312692,0.00405133,2917.2,2915.1,0.15864709]
[1768998313993,0.98665831,2917.1,2915.1,0.15864709]
[1768998314193,0.98665831,2917.0,2915.1,0.15864709]
[1768998314392,0.17164,2916.1,2915.1,0.15864709]
[1768998314795,0.17164,2916.0,2915.1,0.15864709]
[1768998316397,0.00514755,2916.3,2915.1,0.15864709]
[1768998318497,0.17164,2916.1,2915.1,0.15864709]
[1768998319596,0.00514755,2916.3,2915.1,0.15864709]
[1768998321494,0.17163,2916.2,2915.1,0.15864709]
[1768998321793,0.17174,2914.3,2913.4,0.15304571]
[1768998322092,3.446,2914.8,2911.9,0.15304571]
[1768998322292,4.44874444,2914.7,2911.9,0.15304571]
[1768998322494,0.17179,2913.6,2911.9,0.15304571]
[1768998322690,0.1718,2913.4,2911.9,0.15304571]
[1768998322896,0.00514755,2913.0,2912.5,0.00514755]
[1768998323294,0.00514755,2913.0,2912.5,0.15819326]
[1768998324590,0.1718,2913.3,2912.5,0.15819326]
[1768998326702,0.00401569,2913.6,2912.5,0.15819326]
[1768998327502,0.00401569,2913.6,2911.3,0.00140561]
[1768998327503,0.09859439,2913.2,2911.3,0.00140561]
[1768998327796,0.17196,2910.7,2908.5,1.20078795]
[1768998327994,0.17185,2912.5,2908.6,40.8]
[1768998328192,0.17198,2910.3,2908.6,40.8]
[1768998328592,4.80265266,2912.5,2908.6,40.80262945]
[1768998328593,0.15197811,2912.1,2908.6,40.80262945]
[1768998328797,0.17197,2910.4,2909.2,0.00514755]
[1768998329701,0.17553235,2910.4,2909.2,0.15819326]
[1768998329906,0.172,2910.0,2909.2,0.15819326]
[1768998330104,0.00356235,2910.4,2909.2,0.00514755]
[1768998330298,0.00514755,2909.9,2909.2,0.00514755]
[1768998330501,0.00514755,2909.9,2908.6,0.15567516]
[1768998330795,0.17205,2909.1,2908.6,0.00262945]
[1768998331006,0.17205,2909.1,2908.0,0.15304571]
[1768998331796,0.17205,2909.1,2908.3,0.00515668]
[1768998331990,0.17205,2909.1,2908.3,0.00782942]
[1768998332392,0.17714755,2909.9,2908.3,0.16087513]
[1768998332799,0.17201,2909.8,2908.3,0.16087513]
[1768998334300,0.17203,2909.5,2908.3,0.16087513]
[1768998334500,0.17203,2909.5,2908.3,0.00782942]
[1768998334702,0.00514755,2909.9,2904.0,14.67194223]
[1768998334703,0.15712566,2909.9,2907.3,0.15304571]
[1768998334903,0.15197811,2909.7,2907.3,0.15304571]
[1768998335096,0.15197811,2909.6,2907.3,0.15304571]
[1768998335311,0.17209,2908.6,2907.3,0.15304571]
[1768998335701,0.17209,2908.5,2907.3,0.15640661]
[1768998335899,0.00515668,2908.2,2907.3,0.15640661]
[1768998336105,0.00918939,2908.2,2907.3,0.15640661]
[1768998336302,0.15197811,2910.4,2907.3,0.15640661]
[1768998336503,1.65652349,2910.5,2907.3,0.15640661]
[1768998336504,0.17206,2909.0,2907.3,0.15640661]
[1768998337005,0.17206,2908.9,2907.3,0.15640661]
[1768998337209,0.00419507,2908.9,2907.3,0.15640661]
[1768998337508,0.00515668,2908.4,2907.3,0.15640661]
[1768998338207,1.65652349,2910.5,2907.3,0.15640661]
[1768998338208,0.17203,2909.4,2907.7,0.15304571]
[1768998339207,0.17545278,2909.4,2907.7,0.15304571]
[1768998339806,0.00342278,2909.4,2907.7,0.15304571]
[1768998340812,0.00342278,2909.4,2907.9,0.15304571]
[1768998341709,0.17202,2909.6,2907.9,0.15304571]
[1768998342808,0.17523332,2909.6,2907.9,0.15304571]
[1768998344212,0.17206,2909.0,2907.9,0.15304571]
[1768998344417,0.17523332,2909.6,2907.9,0.15304571]
[1768998344717,0.00321332,2909.6,2907.9,0.15304571]
[1768998346413,0.17205,2909.1,2907.9,0.15304571]
[1768998350617,0.14859359,2909.6,2907.6,0.00515668]
[1768998350823,0.17206,2909.0,2907.6,0.00515668]
[1768998351123,0.17206,2909.0,2907.6,0.15565075]
[1768998351916,0.17206,2909.0,2907.6,0.00515668]
[1768998351917,0.14538027,2909.0,2907.6,0.00515668]
[1768998352116,3.44921332,2909.6,2907.3,0.0033609]
[1768998352117,0.17212,2907.9,2907.3,0.0033609]
[1768998352426,0.17212,2907.9,2906.3,0.15049407]
[1768998352427,0.17213,2907.8,2906.3,0.15049407]
[1768998353212,0.17213,2907.8,2906.3,0.15302629]
[1768998353416,0.17209,2908.4,2906.8,0.00515668]
[1768998353810,0.14538027,2908.8,2906.8,0.00515668]
[1768998354318,0.17213,2907.8,2906.8,0.00515668]
[1768998354624,0.17213,2907.7,2906.8,0.00515668]
[1768998354822,0.1721,2908.3,2906.8,0.00515668]
[1768998355013,0.17211,2908.2,2906.8,0.00515668]
[1768998355424,0.00515668,2907.8,2906.8,0.00515668]
[1768998356127,0.17213,2907.7,2906.8,0.00515668]
[1768998356313,0.17214,2907.6,2906.8,0.00515668]
[1768998357320,0.14538027,2907.7,2906.3,0.00253222]
[1768998357526,0.17219,2906.8,2905.4,1.72428096]
[1768998357928,0.17215,2907.4,2905.5,0.14861018]
[1768998358226,0.17216,2907.3,2905.5,0.14861018]
[1768998358424,0.00515668,2907.8,2905.5,0.14861018]
[1768998358425,0.15895214,2907.8,2905.5,0.14861018]
[1768998358624,0.15379546,2907.6,2905.5,0.15127013]
[1768998358926,0.17219,2906.8,2905.5,0.00265995]
[1768998359314,0.15379546,2907.2,2905.5,0.00265995]
[1768998359518,0.15379546,2907.0,2905.5,0.00265995]
[1768998359820,0.17225,2905.8,2904.1,0.14861018]
[1768998360222,0.17221,2906.4,2904.6,0.14861018]
[1768998360424,0.17218,2907.0,2905.1,0.14861018]
[1768998360625,0.17214,2907.6,2905.3,0.14861018]
[1768998360820,0.17214,2907.6,2905.6,0.32087018]
[1768998361022,0.00360954,2907.8,2905.5,1.20816342]
[1768998361023,0.00360954,2907.8,2905.7,0.32086018]
[1768998361218,0.15011954,2908.2,2905.9,0.14861018]
[1768998361422,1.77884242,2908.9,2905.3,0.00333137]
[1768998361423,0.15379546,2908.8,2906.1,0.14861018]
[1768998361622,0.00515668,2907.3,2905.5,0.14861018]
[1768998362427,0.00879391,2907.3,2905.5,0.14861018]
[1768998362726,0.17214,2907.6,2905.3,0.00333137]
[1768998362727,0.17214,2907.6,2906.1,0.14861018]
[1768998362926,0.15379546,2907.4,2905.3,0.00333137]
[1768998363123,0.99710782,2907.3,2905.3,0.00333137]
[1768998363315,0.17215,2907.5,2905.4,0.14861018]
[1768998363521,0.17654009,2907.5,2905.5,0.14861018]
[1768998363731,0.17654009,2907.5,2906.3,0.14861018]
[1768998363732,0.00439009,2907.5,2906.3,0.14861018]
[1768998364328,0.15379546,2908.9,2906.4,0.14861018]
[1768998364623,0.17209,2908.5,2906.4,0.14861018]
[1768998365127,0.15895214,2907.7,2905.4,0.14861018]
[1768998365331,0.17218,2906.9,2904.9,0.14861018]
[1768998365531,0.1722,2906.6,2904.9,0.14861018]
[1768998365826,0.17221,2906.5,2904.9,0.14861018]
[1768998366528,0.00515668,2906.2,2905.6,0.00515668]
[1768998367720,0.15379546,2907.5,2905.6,0.00515668]
[1768998368229,0.15379546,2907.5,2905.6,0.15376686]
[1768998368636,0.17217,2907.0,2905.6,0.15376686]
[1768998369533,0.17549616,2907.7,2905.6,0.15376686]
[1768998370323,0.17214,2907.6,2905.6,0.15376686]
[1768998370529,0.00335616,2907.7,2905.6,0.15376686]
[1768998371135,0.17218,2907.0,2905.6,0.15376686]
[1768998372024,0.00515668,2906.6,2905.6,0.15376686]
[1768998377133,0.17735668,2906.6,2905.6,0.00515668]
[1768998377527,0.17221,2906.5,2905.6,0.00515668]
[1768998377731,0.00515668,2906.6,2905.6,0.00515668]
[1768998378440,0.17222,2906.2,2905.6,0.00515668]
[1768998378746,0.17225,2905.8,2904.3,0.15396163]
[1768998378938,0.17226,2905.6,2904.3,0.15396163]
[1768998379133,0.14313296,2906.1,2903.7,0.15396163]
[1768998379338,0.17227,2905.4,2903.7,0.15396163]
[1768998379539,0.17227,2905.4,2904.0,7.79672349]
[1768998379841,0.00515668,2905.0,2904.0,7.80048802]
[1768998381140,0.00515668,2905.0,2904.0,7.64652639]
[1768998381731,0.00515668,2905.0,2904.2,0.00515668]
[1768998382631,0.1723,2904.9,2904.2,0.00515668]
[1768998382831,0.00515668,2905.0,2904.2,0.00515668]
[1768998383237,0.00515668,2905.0,2904.2,0.15911831]
[1768998385839,0.17744668,2905.0,2904.2,0.15911831]
[1768998386244,0.1723,2904.9,2904.2,0.15911831]
[1768998386844,0.17231,2904.8,2904.2,0.15911831]
[1768998387942,0.00515668,2905.0,2904.2,0.15911831]
[1768998388443,0.1723,2904.9,2904.2,0.15911831]
[1768998389043,0.00515668,2905.0,2904.2,0.15911831]
[1768998390644,0.1723,2904.9,2904.2,0.15911831]
[1768998391748,0.00432142,2905.4,2904.2,0.15911831]
[1768998391943,0.17225,2905.7,2904.2,0.15911831]
[1768998392139,0.17226,2905.6,2904.2,0.15911831]
[1768998392745,0.17223,2906.1,2904.2,0.15911831]
[1768998392946,0.17666176,2906.1,2904.2,40.95911831]
[1768998393247,0.17666176,2906.1,2904.3,0.15396163]
[1768998393849,0.00443176,2906.1,2904.3,0.15396163]
[1768998394044,0.17225,2905.8,2904.3,0.15396163]
[1768998394249,0.00515668,2905.5,2904.3,0.15396163]
[1768998394955,0.00443176,2906.1,2904.3,0.15396163]
[1768998395558,0.00443176,2906.1,2904.4,0.15396163]
[1768998395962,0.00443176,2906.1,2904.4,0.32629163]
[1768998396263,0.14756472,2906.1,2904.2,0.00515668]
[1768998396463,0.14313296,2905.1,2904.0,7.46086279]
[1768998397265,0.17231,2904.8,2904.0,7.30601862]
[1768998397560,0.14313296,2905.1,2903.2,2.65]
[1768998397561,0.17233,2904.4,2903.2,2.65]
[1768998398455,0.17233,2904.4,2903.2,2.65437333]
[1768998398854,0.17233,2904.4,2903.5,0.00516565]
[1768998399860,0.17234,2904.3,2903.5,0.00412323]
[1768998400971,0.00515668,2904.7,2903.5,0.00412323]
[1768998402370,0.00515668,2904.7,2903.5,0.15808486]
[1768998402760,0.00443176,2906.1,2903.6,0.15396163]
[1768998402964,0.00443176,2906.1,2903.9,0.15396163]
[1768998403366,0.17666176,2906.1,2904.1,0.15396163]
[1768998404270,0.17223,2906.0,2904.1,0.15396163]
[1768998404473,0.17224,2905.9,2904.1,0.15396163]
[1768998405073,0.00516565,2905.3,2904.1,0.15396163]
[1768998405773,0.17228,2905.2,2904.1,0.15396163]
[1768998406874,0.17229,2905.1,2904.1,0.15396163]
[1768998407073,0.00516565,2905.3,2904.1,0.15396163]
[1768998407268,0.1723,2904.8,2904.1,0.15396163]
[1768998409166,0.00516565,2905.3,2904.1,0.15396163]
[1768998412874,0.17224,2905.9,2904.1,0.15396163]
[1768998415278,0.00443176,2906.1,2904.1,0.15396163]
[1768998415583,0.00443176,2906.1,2904.4,0.15149322]
[1768998415780,0.00443176,2906.1,2904.4,40.95149322]
[1768998415972,0.00443176,2906.1,2905.1,0.15149322]
[1768998417179,0.00443176,2906.1,2905.0,0.00516565]
[1768998417376,0.00443176,2906.1,2905.0,0.15665887]
[1768998419083,0.00516565,2905.8,2905.0,0.15665887]
[1768998422290,0.17216,2907.2,2905.2,0.14300627]
[1768998422492,0.17216,2907.2,2905.3,0.14300627]
[1768998422685,8.57923814,2907.5,2905.5,0.14300627]
[1768998423186,8.57923814,2907.5,2905.6,0.17226]
[1768998423386,0.00104824,2906.8,2905.7,0.14300627]
[1768998423693,0.00104824,2906.8,2905.5,0.00258107]
[1768998423897,0.00104824,2906.8,2905.5,0.14558734]
[1768998427586,0.17219,2906.7,2905.5,0.14558734]
[1768998428287,0.00104824,2906.8,2905.5,0.14558734]
[1768998428489,0.00104824,2906.8,2905.5,0.31784734]
[1768998428685,8.58352891,2907.5,2906.0,0.31523627]
[1768998428686,0.00429077,2907.5,2906.0,0.31523627]
[1768998428890,0.00429077,2907.5,2906.3,0.14300627]
[1768998429794,0.00429077,2907.5,2906.6,0.00516565]
[1768998430491,0.00429077,2907.5,2905.7,0.14300627]
[1768998430693,0.17217,2907.1,2905.5,0.00258107]
[1768998430993,0.17218,2906.9,2905.5,0.00258107]
[1768998431792,0.17218,2906.9,2905.9,0.00516565]
[1768998432692,0.00786306,2907.4,2905.9,0.00516565]
[1768998432896,0.00764545,2907.2,2905.9,0.00516565]
[1768998433093,0.00764545,2907.2,2905.5,0.00258107]
[1768998433288,0.17223,2906.2,2905.5,0.00258107]
[1768998433797,0.17223,2906.2,2904.7,0.14300627]
[1768998434186,0.17223,2906.2,2905.2,0.00516565]
[1768998434396,0.00516565,2905.7,2905.2,0.00516565]
[1768998434595,0.00516565,2905.7,2904.7,0.14300627]
[1768998434890,0.17223,2906.2,2904.7,0.14659354]
[1768998435494,0.17219,2906.8,2904.7,0.14659354]
[1768998435704,0.17219,2906.8,2904.8,0.15286302]
[1768998435891,0.17216,2907.3,2905.0,0.15286302]
[1768998436091,0.17216,2907.3,2905.5,0.00516565]
[1768998436393,0.17216,2907.2,2905.6,0.15286302]
[1768998436591,0.00516565,2906.7,2905.6,0.15286302]
[1768998437193,0.17221,2906.4,2905.5,0.00516565]
[1768998437395,0.00414935,2907.1,2905.5,0.00516565]
[1768998437396,1.18097689,2907.3,2905.6,0.15286302]
[1768998437604,0.17212,2908.0,2906.3,0.15286302]
[1768998438096,0.14376191,2908.3,2905.7,0.17225]
[1768998438301,0.31590191,2907.7,2905.8,0.15286302]
[1768998438488,0.17214,2907.6,2905.8,0.15286302]
[1768998438692,0.17214,2907.6,2906.5,0.00516565]
[1768998441195,0.00426655,2907.7,2906.5,0.00516565]
[1768998441504,0.14496655,2908.2,2906.5,0.00516565]
[1768998441698,0.14376191,2909.6,2907.3,0.15286302]
[1768998442002,0.14376191,2909.6,2907.5,0.15286302]
[1768998442198,0.14376191,2909.6,2908.2,0.00515659]
[1768998442396,0.14647606,2909.6,2908.2,0.00931852]
[1768998442794,0.14376191,2910.1,2908.2,0.00931852]
[1768998442995,0.14376191,2910.1,2908.2,0.16218154]
[1768998443399,0.14376191,2910.8,2908.2,0.16218154]
[1768998443602,0.14376191,2910.8,2908.8,0.15286302]
[1768998443799,0.14376191,2911.4,2909.2,0.32490302]
[1768998444108,0.14376191,2911.4,2909.5,0.15286302]
[1768998444404,0.14376191,2911.4,2910.0,0.00515659]
[1768998445105,0.31869142,2911.4,2910.0,0.00515659]
[1768998445300,0.14376191,2911.3,2910.0,0.00515659]
[1768998447097,0.00300951,2911.4,2910.0,0.00515659]
[1768998447605,0.14677142,2911.4,2910.0,0.00515659]
[1768998448902,0.31868142,2911.4,2910.0,0.00515659]
[1768998449206,0.31868142,2911.4,2909.2,0.32490302]
[1768998449207,0.14376191,2911.3,2909.2,0.17204]
[1768998449908,0.14376191,2910.4,2908.0,0.15286302]
[1768998450097,0.14376191,2910.4,2908.4,0.17209]
[1768998450306,0.00515659,2909.6,2909.0,0.00515659]
[1768998451006,0.1489185,2909.6,2908.2,0.00416193]
[1768998452702,0.00515659,2909.6,2908.2,0.15702495]
[1768998453211,0.00515659,2909.6,2908.2,0.32912495]
[1768998453409,0.00515659,2909.6,2908.6,0.00515659]
[1768998454616,0.14376191,2910.6,2908.6,0.15801961]
[1768998454998,0.17195,2910.9,2909.0,0.15286302]
[1768998455202,0.17195,2910.8,2909.0,0.15286302]
[1768998455905,0.17196,2910.7,2909.0,0.15286302]
[1768998456111,0.31572191,2910.7,2908.7,0.17207]
[1768998456709,0.31572191,2910.7,2908.7,0.32493302]
[1768998456909,0.31572191,2910.7,2908.8,0.15286302]
[1768998457610,0.17196,2910.6,2908.8,0.15286302]
[1768998458811,0.17196,2910.6,2908.9,1.35859796]
[1768998459012,0.00515659,2910.0,2908.9,1.35859796]
[1768998459210,0.14376191,2910.7,2908.9,1.35859796]
[1768998459413,0.00300951,2911.4,2910.2,0.15286302]
[1768998459611,0.17185,2912.6,2910.5,1.35859796]
[1768998459805,0.14376191,2912.7,2910.5,1.35859796]
[1768998460005,0.14376191,2912.7,2910.6,0.32482302]
[1768998460203,0.14376191,2912.7,2910.8,0.15286302]
[1768998460509,0.14635978,2912.7,2910.8,0.15534092]
[1768998460702,0.14635978,2912.7,2910.8,0.32729092]
[1768998460902,0.14376191,2912.5,2910.8,0.0024779]
[1768998461115,0.14376191,2912.4,2910.8,0.0024779]
[1768998463710,0.14376191,2912.4,2911.3,0.00515659]
[1768998465911,0.00259787,2912.7,2911.3,0.00515659]
[1768998467415,0.00259787,2912.7,2911.3,0.14535504]
[1768998470720,0.00259787,2912.7,2911.3,0.00515659]
[1768998471510,0.17443787,2912.7,2911.3,0.00515659]
[1768998471921,0.17184,2912.6,2911.3,0.00515659]
[1768998473022,0.32463058,2912.6,2911.3,0.00515659]
[1768998474118,0.00259787,2912.7,2911.3,0.00515659]
[1768998476532,0.00259787,2912.7,2911.3,0.14535504]
[1768998476730,0.00259787,2912.7,2911.3,0.31727504]
[1768998477829,0.17179,2913.5,2911.5,1.20573494]
[1768998478034,8.68618649,2913.6,2911.6,0.14352041]
[1768998478235,8.68618649,2913.6,2911.7,0.17189]
[1768998478429,8.68618649,2913.6,2912.1,1.20573494]
[1768998478639,8.54185202,2913.6,2912.1,1.20573494]
[1768998478833,8.54185202,2913.6,2911.6,0.14352041]
[1768998478834,0.14433447,2913.4,2911.6,0.14352041]
[1768998479032,0.00515659,2913.1,2911.7,0.31541041]
[1768998480132,0.14949106,2913.1,2911.3,0.00515659]
[1768998480436,0.14462,2913.0,2911.3,0.148677]
[1768998480733,0.14949106,2913.1,2911.3,0.00515659]
[1768998480935,0.17183,2912.8,2911.3,0.00515659]
[1768998481532,0.17186,2912.4,2911.3,0.00515659]
[1768998481740,0.31619447,2912.4,2911.3,0.00515659]
[1768998481942,0.14433447,2912.9,2911.3,0.00515659]
[1768998482936,0.17182,2913.0,2911.3,0.148677]
[1768998483137,0.14433447,2912.6,2911.3,0.00515659]
[1768998483335,0.31618447,2912.6,2911.3,0.00515659]
[1768998483526,0.14433447,2912.5,2911.3,0.00515659]
[1768998483732,0.14433447,2912.3,2910.8,0.0024779]
[1768998484944,0.14433447,2912.3,2911.3,0.00515659]
[1768998485238,0.14433447,2912.3,2910.8,0.0024779]
[1768998485640,0.14433447,2911.7,2909.7,1.37774494]
[1768998486435,0.14433447,2912.3,2910.2,1.20573494]
[1768998486636,1.14343569,2912.2,2910.4,0.00515659]
[1768998486834,0.97156569,2912.1,2910.4,0.00515659]
[1768998489341,0.97156569,2912.0,2910.4,0.00515659]
[1768998490148,0.97156569,2911.9,2910.4,0.00515659]
[1768998490444,0.97156569,2911.8,2910.4,0.00515659]
[1768998490644,0.17188,2912.1,2910.4,0.00515659]
[1768998490844,0.97384036,2912.0,2910.4,0.00515659]
[1768998491145,0.97384036,2911.9,2910.4,0.00515659]
[1768998491445,0.97384036,2911.8,2910.4,0.00515659]
[1768998491740,0.17188,2912.1,2910.4,0.00515659]
[1768998492044,0.97378759,2912.0,2910.4,0.00515659]
[1768998492246,0.17188,2912.1,2910.4,0.00515659]
[1768998492247,0.97378759,2911.9,2910.4,0.00515659]
[1768998492446,0.97378759,2911.8,2910.4,0.00515659]
[1768998492645,0.17188,2912.1,2910.4,0.00515659]
[1768998492842,0.97372358,2912.0,2910.4,0.00515659]
[1768998493145,0.97372358,2911.9,2910.4,0.00515659]
[1768998493347,0.17188,2912.1,2910.4,0.00515659]
[1768998493539,0.17188,2911.9,2910.4,0.00515659]
[1768998494242,1.31888134,2912.3,2910.7,1.20573494]
[1768998494444,0.97233874,2912.2,2910.7,1.20573494]
[1768998494642,0.17188,2911.9,2910.7,1.20573494]
[1768998494844,0.00515659,2911.7,2910.7,1.20573494]
[1768998495347,0.14433447,2912.3,2910.7,1.20573494]
[1768998495747,0.14180246,2912.0,2910.4,0.00515659]
[1768998499147,0.31364246,2912.6,2910.7,1.35234991]
[1768998499336,0.97334963,2912.5,2910.7,1.35234991]
[1768998499545,0.31364246,2912.6,2910.7,1.35234991]
[1768998499742,0.97335012,2912.5,2910.7,1.35234991]
[1768998499948,0.31364246,2912.6,2910.7,1.35234991]
[1768998500251,1.11514034,2912.5,2910.7,1.35234991]
[1768998500452,0.14180246,2912.5,2910.7,1.35234991]
[1768998502146,0.14180246,2912.5,2910.7,1.52430991]
[1768998508356,0.97738154,2912.4,2910.7,1.52430991]
[1768998508554,0.31365246,2912.5,2910.7,1.52430991]
[1768998508755,0.97738269,2912.4,2910.7,1.52430991]
[1768998508952,0.31365246,2912.5,2910.7,1.52430991]
[1768998509153,1.149243,2912.4,2910.7,1.52430991]
[1768998509347,0.17186,2912.3,2910.7,1.52430991]
[1768998510858,0.17186,2912.3,2910.7,0.31857497]
[1768998513360,0.14180246,2911.5,2910.4,0.00515659]
[1768998513559,0.17191,2911.6,2910.4,0.00515659]
[1768998515957,0.31371246,2911.6,2910.4,0.00515659]
[1768998516660,0.31371246,2911.5,2910.4,0.00515659]
[1768998516864,0.14180246,2911.4,2910.4,0.00515659]
[1768998519467,0.31368246,2912.0,2910.4,0.00515659]
[1768998519666,0.97847952,2911.9,2910.4,0.00515659]
[1768998519864,0.31368246,2912.0,2910.4,0.00515659]
[1768998520062,0.9784891,2911.9,2910.4,0.00515659]
[1768998520263,0.31368246,2912.0,2910.4,0.00515659]
[1768998520573,0.14180246,2911.8,2910.4,0.00515659]
[1768998524668,0.31369246,2911.8,2910.4,0.00515659]
[1768998524972,0.14180246,2911.7,2910.4,0.00515659]
[1768998526971,0.31370246,2911.7,2910.4,0.00515659]
[1768998529478,0.14171267,2911.5,2910.4,0.00515659]
[1768998530175,0.31362267,2911.5,2910.4,0.00515659]
[1768998530378,0.14171267,2911.4,2910.4,0.00515659]
[1768998530579,0.17191,2911.5,2910.4,0.00515659]
[1768998536678,0.14171267,2911.8,2910.4,0.00515659]
[1768998536882,0.31360267,2911.8,2910.4,0.00515659]
[1768998537178,0.14171267,2911.7,2910.4,0.00515659]
[1768998542185,0.17189,2911.8,2910.4,0.1478609]
[1768998542383,0.3160403,2911.8,2910.4,0.00515659]
[1768998542785,0.00515659,2911.4,2910.4,0.00515659]
[1768998543284,0.00515659,2911.4,2910.4,0.1478609]
[1768998544595,0.17189,2911.8,2910.4,0.1478609]
[1768998546794,0.3160403,2911.8,2910.4,0.00515659]
[1768998547097,0.1441503,2911.7,2910.4,0.00515659]
[1768998550090,0.17189,2911.8,2910.4,0.00515659]
[1768998550296,0.17186,2912.4,2910.5,0.14270431]
[1768998550492,0.9931033,2912.3,2910.6,0.14270431]
[1768998550693,0.17186,2912.4,2910.6,0.14270431]
[1768998550892,0.99452071,2912.3,2910.6,0.14270431]
[1768998551092,0.17186,2912.4,2910.6,0.14270431]
[1768998552307,0.17186,2912.4,2910.7,0.14270431]
[1768998555606,0.14028082,2912.3,2910.7,0.14270431]
[1768998556105,0.17186,2912.4,2910.7,0.14270431]
[1768998556403,0.17186,2912.4,2910.8,0.14004305]
[1768998556811,0.14028082,2912.8,2911.0,0.14004305]
[1768998556995,0.14028082,2912.8,2911.1,0.14004305]
[1768998558307,0.14028082,2912.8,2911.2,0.14004305]
[1768998558510,0.17182,2913.0,2911.2,0.14004305]
[1768998560203,0.31210082,2913.0,2911.2,0.14004305]
[1768998563301,0.31210082,2913.0,2911.2,3.93904305]
[1768998563508,0.31210082,2913.0,2911.3,0.14004305]
[1768998564105,0.31210082,2913.0,2911.9,0.00515659]
[1768998564605,0.00307016,2913.4,2911.9,0.00515659]
[1768998565211,8.54185202,2913.6,2911.9,0.14519964]
[1768998565407,0.14028082,2914.0,2911.9,0.14519964]
[1768998566303,0.14355668,2914.0,2911.9,0.14519964]
[1768998566803,0.00515659,2913.2,2912.0,0.14004305]
[1768998567005,0.14355668,2914.0,2912.0,0.14004305]
[1768998567408,0.14355668,2914.0,2912.1,0.14004305]
[1768998569610,0.14355668,2914.0,2911.9,0.00515659]
[1768998569611,0.14028082,2913.5,2911.9,0.00515659]
[1768998570415,0.31207082,2913.5,2911.9,0.00515659]
[1768998570712,0.31207082,2913.5,2911.9,0.14519964]